Cogmind - Beta 10 @@@ ROGUE MODE // 2020.09.12 @ 07:39:36 // Winter2019/RPGLIKE Player: Torako Result: Destroyed by Y-64 Sentinel with KE Penetrator Performance ------------- Evolutions (6) 3000 Regions Visited (23) 4600 Robots Destroyed (372) 1860 Value Destroyed (13167) 13167 Prototype IDs (60) 1200 Alien Tech Used (0) 0 Bonus (4851) 4851 TOTAL SCORE: 28678 Bonus ------- High Alert Combat Kills 3061 Follower Combat Kills 165 Entered Garrisons 200 Used RIF Installer 500 Network Hubs Disabled 800 Aligned with FarCom 300 Destroyed Z-Imprinter 1000 Triggered Deep Caves Wall 500 Exposed GOLEM Chamber 500 Friendly Fire -2175 Cogmind --------- Core Integrity 0/1550 Matter 300/300 Energy 603/615 System Corruption 0% Temperature Cool (33) Movement Flying (20) Location -4/Armory Parts ------- > --- POWER (4) -------- Cooled Fission Core Micro Fission Core Fusion Reactor > --- PROPULSION (8) --- Improved Flight Unit Improved VTOL Module Improved VTOL Module Cooled VTOL Module Cooled VTOL Module Field Propulsion Drive > --- UTILITY (7) ------ Zionite Metafield Generator Advanced Melee Analysis Suite Advanced Core Analyzer Improved Armor Integrity Analyzer Actuator Array Experimental Phase Shifter EM Dispersion Field > --- WEAPON (5) ------- Katana Katana Power Sword Makeshift Spear > --- INVENTORY (3) ---- EMDS Guided Plasma Cannon Peak State ------------ > --- POWER ------------ Cooled Fission Core Micro Fission Core Fusion Reactor > --- PROPULSION ------- Improved Flight Unit Improved VTOL Module Improved VTOL Module Cooled VTOL Module Cooled VTOL Module Nuclear Pulse Thruster Field Propulsion Drive > --- UTILITY ---------- Zionite Metafield Generator Advanced Melee Analysis Suite Advanced Core Analyzer Improved Armor Integrity Analyzer Actuator Array Experimental Phase Shifter EM Dispersion Field > --- WEAPON ----------- EMDS Katana Katana Makeshift Spear > --- INVENTORY -------- Guided Plasma Cannon [Rating: 131] Favorites ----------- Power Cooled Ion Engine Engine Cooled Ion Engine Power Core Cooled Fission Core Reactor Zionite Light DM Reactor Propulsion Improved Flight Unit Wheel Wheel Hover Unit Hover Unit Flight Unit Improved Flight Unit Utility Improved Armor Integrity Analyzer Device Microactuators Storage Advanced Energy Well Processor Improved Armor Integrity Analyzer Protection Propulsion Shielding Weapon Katana Energy Gun Shock Rifle Energy Cannon Advanced Beam Cannon Ballistic Gun Shotgun Launcher Advanced EMP Blaster Slashing Weapon Katana Piercing Weapon Makeshift Spear Build | -11 -10 -10 -9 -9 -9 -8 -8 -8 -8 -8 -6 -6 -6 -6 -6 -5 -5 -5 -5 -5 -5 -4 -4 ------- Run | Scr Mat Min Mat Min Exi Min Mat Sto Gar Rec Fac Low Low Zio Dee Pro Fac Ext Cet Arc Hub Fac Arm Slots Evolved 20 | 1 2 1 7 . . 1 1 2 . . 1 1 . . . . 2 . . . 1 . . Power 3 | . . . 2 . . . . . . . . . . . . . . . . . 1 . . Propulsion 7 | . 1 . 4 . . . . . . . . . . . . . 2 . . . . . . Utility 6 | . 1 1 . . . . . 2 . . 1 1 . . . . . . . . . . . Weapon 4 | 1 . . 1 . . 1 1 . . . . . . . . . . . . . . . . Parts Attached 125 | 4 8 4 30 6 2 1 1 8 . . 1 1 1 . 21 . 15 3 4 . 11 2 2 Power 19 | 1 . 1 8 1 . . . . . . . . . . 3 . 4 . . . . 1 . Engine 11 | 1 . . 8 1 . . . . . . . . . . 1 . . . . . . . . Core 5 | . . 1 . . . . . . . . . . . . . . 3 . . . . 1 . Reactor 3 | . . . . . . . . . . . . . . . 2 . 1 . . . . . . Propulsion 20 | 1 2 . 8 . . . . 3 . . . . . . . . 6 . . . . . . Treads . | . . . . . . . . . . . . . . . . . . . . . . . . Leg . | . . . . . . . . . . . . . . . . . . . . . . . . Wheel 1 | 1 . . . . . . . . . . . . . . . . . . . . . . . Hover 2 | . 2 . . . . . . . . . . . . . . . . . . . . . . Flight 17 | . . . 8 . . . . 3 . . . . . . . . 6 . . . . . . Utility 48 | . 2 1 6 3 2 . . 2 . . 1 1 1 . 14 . 4 3 4 . 3 1 . Device 20 | . . . . 1 . . . 1 . . 1 . 1 . 9 . 2 1 1 . 2 1 . Storage 3 | . . . . . . . . . . . . . . . 1 . . 1 1 . . . . Processor 8 | . . . 1 . 2 . . 1 . . . 1 . . . . 2 . . . 1 . . Hackware . | . . . . . . . . . . . . . . . . . . . . . . . . Protection 17 | . 2 1 5 2 . . . . . . . . . . 4 . . 1 2 . . . . Artifact . | . . . . . . . . . . . . . . . . . . . . . . . . Weapon 38 | 2 4 2 8 2 . 1 1 3 . . . . . . 4 . 1 . . . 8 . 2 Energy Gun 6 | 1 . . 5 . . . . . . . . . . . . . . . . . . . . Energy Cannon 6 | . . . 1 . . . . . . . . . . . 1 . . . . . 3 . 1 Ballistic Gun 8 | 1 4 1 2 . . . . . . . . . . . . . . . . . . . . Ballistic Cannon . | . . . . . . . . . . . . . . . . . . . . . . . . Launcher 3 | . . 1 . . . . . 1 . . . . . . 1 . . . . . . . . Special Weapon . | . . . . . . . . . . . . . . . . . . . . . . . . Impact Weapon . | . . . . . . . . . . . . . . . . . . . . . . . . Slashing Weapon 10 | . . . . 1 . 1 1 2 . . . . . . . . 1 . . . 3 . 1 Piercing Weapon 5 | . . . . 1 . . . . . . . . . . 2 . . . . . 2 . . Special Melee Weapon . | . . . . . . . . . . . . . . . . . . . . . . . . Unidentified Prototypes 29 | . . . 6 . . . . 2 . . . . . . 7 . 5 1 3 . 4 1 . Parts Lost 8 | . . . 1 . . . . . . . . . 1 . . . 1 1 . . 1 2 1 Power 1 | . . . . . . . . . . . . . . . . . . . . . 1 . . Propulsion 2 | . . . . . . . . . . . . . . . . . . . . . . 1 1 Utility 4 | . . . 1 . . . . . . . . . 1 . . . . 1 . . . 1 . Weapon 1 | . . . . . . . . . . . . . . . . . 1 . . . . . . Highest Loss Streak 1 | . . . 1 . . . . . . . . . 1 . . . 1 1 . . 1 1 1 Average Slot Usage (%) 95 | . 99 100 97 97 93 93 93 94 94 94 92 95 93 95 94 95 94 95 95 95 95 93 87 Engine 11 | . 15 9 11 20 20 19 17 16 15 15 15 14 14 14 9 9 4 . . . . . . Core 1 | . . 2 4 . . . . . . . . . . . . . 1 4 4 4 4 8 8 Reactor 2 | . . . . . . . . . . . . . . . 3 4 6 8 8 8 7 4 4 Hover 4 | . 20 25 4 . . . . . . . . . . . . . . . . . . . . Flight 26 | . . . 28 40 40 39 36 33 31 31 30 29 28 28 28 28 32 34 34 34 33 32 28 Device 8 | . . . . 1 6 6 5 6 10 10 11 14 12 14 14 19 17 16 13 13 14 15 16 Processor 8 | . . . . . 3 12 11 12 15 15 15 16 19 19 16 14 13 13 13 13 12 12 12 Protection 10 | . 22 36 27 17 9 . . . . . . . . . 1 . . . 4 4 2 . . Energy Gun 3 | . 9 . 9 10 . . . . . . . . . . . . . . . . . . . Ballistic Gun 5 | . 22 25 7 . . . . . . . . . . . . . . . . . . . . Slashing Weapon 8 | . . . . 2 6 6 13 16 15 15 15 14 14 14 14 14 13 13 13 13 15 16 12 Piercing Weapon 2 | . . . . 4 6 6 5 5 5 5 5 4 4 4 2 4 4 4 4 4 3 4 4 Naked Turns . | . . . . . . . . . . . . . . . . . . . . . . . . Heaviest Build 66 | 9 13 18 42 45 42 36 39 39 39 39 44 44 44 44 57 51 58 58 63 63 66 55 55 Greatest Support 70 | 10 17 22 43 48 48 48 48 51 51 51 51 51 51 51 51 51 69 66 66 66 70 66 64 Greatest Overweight (x) 2 | . . 1 1 . . . . . . . . . . . 1 . . . . . 1 . 2 Average Overweight (x) . | . . . . . . . . . . . . . . . . . . . . . . . . Largest Inventory Capacity 3 | . 3 3 3 3 3 3 3 3 3 3 3 3 3 3 3 3 3 3 3 3 3 3 3 Average Capacity 2 | . 2 3 3 3 3 3 3 3 3 3 3 3 3 3 3 3 3 3 3 3 3 3 3 Most Carried 3 | . 3 3 3 3 3 3 3 3 3 3 3 3 3 3 3 3 3 3 3 3 3 3 3 Average Carried 2 | . 2 2 3 2 2 2 3 2 3 3 3 3 3 3 2 3 2 2 3 3 2 3 2 Final Capacity 3 | . 3 3 3 3 3 3 3 3 3 3 3 3 3 3 3 3 3 3 3 3 3 3 3 Final Carried 3 | . 3 3 3 3 3 3 3 3 3 3 3 3 3 3 3 3 3 3 3 3 3 3 3 Class Distribution -------------------- 48% | Scavenger-Sprinter 29% | Hacker-Sprinter 20% | Hacker-Mutant Dominant Class ---------------- Hacker-Mutant | -10/Materials Hacker-Mutant | -10/Mines Hacker-Sprinter | -9/Materials Hacker-Sprinter | -9/Mines Hacker-Sprinter | -9/Exiles Hacker-Sprinter | -8/Mines Hacker-Sprinter | -8/Materials Hacker-Sprinter | -8/Storage Scavenger-Sprinter | -8/Garrison Scavenger-Sprinter | -8/Recycling Scavenger-Sprinter | -6/Factory Scavenger-Sprinter | -6/Lower Caves Scavenger-Sprinter | -6/Lower Caves Scavenger-Sprinter | -6/Zion Scavenger-Sprinter | -6/Deep Caves Scavenger-Sprinter | -5/Proximity Caves Scavenger-Sprinter | -5/Factory Scavenger-Sprinter | -5/Extension Scavenger-Sprinter | -5/Cetus Scavenger-Sprinter | -5/Archives Scavenger-Sprinter | -5/Hub_04(d) Scavenger-Sprinter | -4/Factory Scavenger-Sprinter | -4/Armory Resources | -11 -10 -10 -9 -9 -9 -8 -8 -8 -8 -8 -6 -6 -6 -6 -6 -5 -5 -5 -5 -5 -5 -4 -4 ----------- Run | Scr Mat Min Mat Min Exi Min Mat Sto Gar Rec Fac Low Low Zio Dee Pro Fac Ext Cet Arc Hub Fac Arm Matter Collected 2598 | 165 543 171 764 60 . 30 10 80 . . . 20 10 . 260 10 140 50 40 . 100 . 145 Remotely . | . . . . . . . . . . . . . . . . . . . . . . . . Salvage Created 15167 | . 887 206 1803 425 24 422 563 1378 183 338 174 37 516 186 891 71 3314 570 120 32 2390 93 544 Parts 844 | . 67 9 117 22 11 32 32 96 19 15 8 1 34 13 42 1 158 49 7 . 91 4 16 Haulers Intercepted 25 | . 2 . 5 . . . 2 6 . . . . . . . . 8 . . . 2 . . Recyclers Shooed 1 | . 1 . . . . . . . . . . . . . . . . . . . . . . Parts Field Recycled . | . . . . . . . . . . . . . . . . . . . . . . . . Retrieved Matter . | . . . . . . . . . . . . . . . . . . . . . . . . Parts Self-Destructed 35 | . . . . . . . . . . . . 1 33 . . 1 . . . . . . . Prevented . | . . . . . . . . . . . . . . . . . . . . . . . . Kills | -11 -10 -10 -9 -9 -9 -8 -8 -8 -8 -8 -6 -6 -6 -6 -6 -5 -5 -5 -5 -5 -5 -4 -4 ------- Run | Scr Mat Min Mat Min Exi Min Mat Sto Gar Rec Fac Low Low Zio Dee Pro Fac Ext Cet Arc Hub Fac Arm Combat Hostiles Destroyed 296 | . 25 13 41 12 . 16 9 34 10 6 3 1 11 1 20 1 45 14 . . 26 1 7 Melee 191 | . . . . . . 16 9 34 10 6 3 1 11 1 14 1 45 14 . . 21 1 4 Guns 74 | . 25 10 27 12 . . . . . . . . . . . . . . . . . . . Cannons 12 | . . . 10 . . . . . . . . . . . . . . . . . . . 2 AOE 9 | . . 3 1 . . . . . . . . . . . 1 . . . . . 4 . . Classes Destroyed 23 | . 8 1 2 2 . 1 . 1 . 1 . . . 2 2 . 3 . . . . . . Worker 7 | . 2 . . . . . . . . . . . . . . . 1 . . . 4 . . Builder 2 | . . . 1 1 . . . . . . . . . . . . . . . . . . . Tunneler 1 | . 1 . . . . . . . . . . . . . . . . . . . . . . Hauler 25 | . 2 . 5 . . . 2 6 . . . . . . . . 8 . . . 2 . . Recycler 4 | . . . . . . . . . . . . . . . . . 2 1 . . 1 . . Mechanic 1 | . 1 . . . . . . . . . . . . . . . . . . . . . . Operator 9 | . 2 . 1 . . . . 1 . . . . . . . . 2 1 . 1 1 . . Drone 6 | . . . . . . . . . . 6 . . . . . . . . . . . . . Watcher 20 | . 3 . 5 . . . 1 1 . . . . . . . . 4 3 . . 3 . . Swarmer 69 | . 6 . 18 4 . 7 . 6 6 . . 1 4 . . . 9 8 . . . . . Grunt 101 | . 19 4 13 6 . 5 6 20 2 . 1 . 3 . . . 8 2 . . 11 1 . Brawler 2 | . . . . 1 . . . . . . . . . . . . 1 . . . . . . Duelist 9 | . . . . 1 . 1 . 1 . . . . . . . . 2 . . . 2 . 2 Protector 4 | . . . . . . . . 1 . . . . . . . . 1 . . . 2 . . Sentry 43 | . . . 10 . . . 2 6 2 . 2 . . . . . 9 2 . . 7 . 3 Hunter 23 | . . . . . . 3 1 . . . . . 4 . . 1 11 . . . 1 . 2 Programmer 3 | . . . . . . . . . . . . . . . . . 3 . . . . . . Behemoth 3 | . . . . . . . . . . . . . . . . . 1 2 . . . . . Lightning 3 | . . . . . . . . . . . . . . . . . . . . . 3 . . Zionite 5 | . . . . . . . . . . . . . . 5 . . . . . . . . . Z-Light 8 | . . . . . . . . . . . . . . . 8 . . . . . . . . Assembled 18 | . . 9 . . . . . . . . . . . . 9 . . . . . . . . Golem 2 | . . . . . . . . . . . . . . . 2 . . . . . . . . Mutant 1 | . . . . . . . . . . . . . . 1 . . . . . . . . . Best Kill Streak 25 | . 5 8 8 5 1 7 8 13 8 3 2 3 4 3 9 1 12 5 . 1 25 1 4 Combat Bots Only 12 | . 5 8 6 5 . 7 6 12 8 3 2 3 4 1 6 1 7 5 . . 10 1 4 Max Kills in Single Turn 4 | . 2 2 2 2 1 1 1 2 2 1 1 1 2 2 2 1 1 2 1 1 4 1 1 Gunslinging 1 | . 1 . 1 1 . . . . . . . . . . . . . . . . . . . Exploded 3 | . . 2 1 . . . . . . . . . . . 1 . . . . . 3 . . Melee 2 | . . . . . . 1 1 2 2 1 1 1 2 1 1 1 1 2 . . 1 1 1 Uniques/NPCs Destroyed 3 | . . . . . 1 . . . . . . . . . 1 . . . 1 . . . . EX-DEC (-9/Exiles) Z-Imprinter (-6/Deep Caves) A7 (-5/Cetus) Combat | -11 -10 -10 -9 -9 -9 -8 -8 -8 -8 -8 -6 -6 -6 -6 -6 -5 -5 -5 -5 -5 -5 -4 -4 -------- Run | Scr Mat Min Mat Min Exi Min Mat Sto Gar Rec Fac Low Low Zio Dee Pro Fac Ext Cet Arc Hub Fac Arm Damage Taken 12424 | . 655 550 1371 131 . 322 138 756 649 . 216 58 440 289 1466 16 2073 957 135 71 1237 318 576 Core 9499 | . 477 338 837 65 . 259 114 636 524 . 169 45 353 244 1138 12 1708 773 92 36 918 264 497 Absorbed by Shields 313 | . . . . . . . . 7 177 . . . . . . . . 129 . . . . . Redirected to Core 7174 | . 318 250 686 65 . 212 81 428 383 . 157 45 303 152 805 12 1290 645 67 36 764 181 294 Core Remaining (%) 74 | 100 . 72 . . . 100 . . . 100 . . . . . 27 . . . . 48 . . Volleys Fired 299 | . 76 39 123 22 . . . . . . . . . . 18 . . . . . 12 . 9 Largest 3 | . 2 2 3 3 . . . . . . . . . . 1 . . . . . 1 . 1 Hottest 150 | . 70 46 150 150 . . . . . . . . . . 120 . . . . . 120 . 70 Shots Fired 578 | . 152 76 254 58 . . . . . . . . . . 18 . . . . . 11 . 9 Gun 498 | . 152 74 214 58 . . . . . . . . . . . . . . . . . . . Cannon 66 | . . . 40 . . . . . . . . . . . 6 . . . . . 11 . 9 Launcher 14 | . . 2 . . . . . . . . . . . . 12 . . . . . . . . Special . | . . . . . . . . . . . . . . . . . . . . . . . . Kinetic 263 | . 108 74 81 . . . . . . . . . . . . . . . . . . . . Thermal 101 | . 44 . 40 . . . . . . . . . . . 6 . . . . . 11 . . Explosive 2 | . . 2 . . . . . . . . . . . . . . . . . . . . . Electromagnetic 212 | . . . 133 58 . . . . . . . . . . 12 . . . . . . . 9 Robot Hit Streak 16 | . 11 8 16 9 . . . . . . . . . . 2 . . . . . . . 4 Robot Miss Streak 8 | . 5 6 8 6 . . . . . . . . . . 1 . . . . . . . 1 Penetration Max 1 | . . . . . . . . . . . . . . . . . . . . . . . 1 Secondary Targets 14 | . 6 2 4 2 . . . . . . . . . . . . . . . . . . . Max Gunslinging Chain 1 | . 1 1 1 1 . . . . . . . . . . . . . . . . . . . Shots Hit Robots 1058 | . 103 54 158 36 2 30 21 99 21 11 15 1 28 22 59 4 201 59 5 3 104 3 19 Core Hits 543 | . 62 29 59 16 1 18 14 46 10 8 4 1 16 6 35 1 100 29 4 1 68 2 13 Critical Hits 53 | . 1 1 6 2 1 2 1 9 2 . 3 . 1 . 3 . 12 4 . . 2 . 3 Critical Kills 19 | . . 1 4 1 . 2 1 1 . . 2 . . . 1 . 5 . . . 1 . . Critical Parts Destroyed 27 | . 1 . 2 1 1 . . 6 2 . 1 . 1 . 1 . 5 3 . . . . 3 Melee Attacks 910 | . . . . 3 2 44 26 130 33 20 15 3 44 36 73 4 239 72 13 3 117 7 26 Impact . | . . . . . . . . . . . . . . . . . . . . . . . . Slashing 612 | . . . . . 2 30 4 107 28 19 14 2 37 27 56 4 162 29 3 1 70 3 14 Piercing 298 | . . . . 3 . 14 22 23 5 1 1 1 7 9 17 . 77 43 10 2 47 4 12 Sneak Attacks 59 | . . . . 1 2 . 2 8 . . . . . . 1 2 17 1 5 2 15 . 3 Combat Hostiles 15 | . . . . . . . . 1 . . . . . . 1 2 1 . . . 7 . 3 Follow-up Attacks 264 | . . . . . . 7 3 32 8 3 7 . 12 9 22 1 86 22 . 1 47 1 3 Damage Inflicted 44346 | . 1414 795 2789 812 330 1471 837 5859 1243 1075 780 65 1445 1040 3632 427 10396 2263 379 296 5818 105 1075 Guns 4605 | . 1414 616 1999 576 . . . . . . . . . . . . . . . . . . . Cannons 1079 | . . . 580 . . . . . . . . . . . 122 . . . . . . . 377 Explosions 2235 | . . 179 206 114 . . . . . . . . . . 655 . . . . . 1081 . . Melee 36423 | . . . . 122 330 1471 837 5859 1243 1075 780 65 1445 1040 2855 427 10396 2263 379 296 4737 105 698 Ramming 4 | . . . 4 . . . . . . . . . . . . . . . . . . . . Kinetic 2241 | . 1039 616 586 . . . . . . . . . . . . . . . . . . . . Thermal 1397 | . 375 . 786 114 . . . . . . . . . . 122 . . . . . . . . Explosive 179 | . . 179 . . . . . . . . . . . . . . . . . . . . . Electromagnetic 4102 | . . . 1413 576 . . . . . . . . . . 655 . . . . . 1081 . 377 Impact . | . . . . . . . . . . . . . . . . . . . . . . . . Slashing 26770 | . . . . . 330 1244 104 5212 1210 1033 743 65 1410 901 2522 427 7615 751 . 131 2809 38 225 Piercing 9653 | . . . . 122 . 227 733 647 33 42 37 . 35 139 333 . 2781 1512 379 165 1928 67 473 Highest Corruption 6 | . . . . . . . . 2 2 2 . . . . . . . 2 2 2 6 . . Average Corruption 2 | . . . . . . . . 2 2 2 . . . . . . . 2 2 2 3 . . Corruption Purged . | . . . . . . . . . . . . . . . . . . . . . . . . Effects 25 | . . . . . . . . 6 1 2 . . . . . . . 6 1 . 9 . . Message Errors 7 | . . . . . . . . 1 1 2 . . . . . . . 3 . . . . . Matter Fused 1 | . . . . . . . . . . . . . . . . . . . . . 1 . . Heat Flow Errors 2 | . . . . . . . . 1 . . . . . . . . . 1 . . . . . Energy Discharges 3 | . . . . . . . . . . . . . . . . . . 1 . . 2 . . Data Loss (minor) 6 | . . . . . . . . 3 . . . . . . . . . 1 . . 2 . . Targeting Errors 5 | . . . . . . . . 1 . . . . . . . . . . 1 . 3 . . Weapon Failures 1 | . . . . . . . . . . . . . . . . . . . . . 1 . . Overload Shots . | . . . . . . . . . . . . . . . . . . . . . . . . Overflow Damage 3326 | . . . 24 . . 156 32 870 65 310 95 . 91 43 177 80 786 10 . 218 369 . . Projectiles . | . . . . . . . . . . . . . . . . . . . . . . . . Explosions 26 | . . . 24 . . . . . . . . . . . 2 . . . . . . . . Melee 3300 | . . . . . . 156 32 870 65 310 95 . 91 43 175 80 786 10 . 218 369 . . Knockbacks . | . . . . . . . . . . . . . . . . . . . . . . . . Impact . | . . . . . . . . . . . . . . . . . . . . . . . . Kinetic . | . . . . . . . . . . . . . . . . . . . . . . . . Secondary . | . . . . . . . . . . . . . . . . . . . . . . . . Self-Inflicted Damage 204 | . . 25 43 . . . . . . . . . . . 14 . . . . . 122 . . Shots 6 | . . 1 1 . . . . . . . . . . . 1 . . . . . 3 . . Rammed 1 | . . . 1 . . . . . . . . . . . . . . . . . . . . Targets Rammed 1 | . . . 1 . . . . . . . . . . . . . . . . . . . . Kicked . | . . . . . . . . . . . . . . . . . . . . . . . . Crushed . | . . . . . . . . . . . . . . . . . . . . . . . . Highest Temperature 419 | . 129 165 419 117 . . . 67 . . . . 6 . 290 87 203 196 38 15 60 . 78 Average Temperature 72 | . 28 78 115 41 . . . 38 . . . . 6 . 107 41 53 63 18 10 52 . 49 Received Heat Transfer 2546 | . 267 236 384 18 . 54 81 267 90 . 99 . 54 . 258 . 240 174 18 . 165 84 57 Effects 2 | . . . 1 . . . . . . . . . . . . . 1 . . . . . . Energy Bleed 1 | . . . 1 . . . . . . . . . . . . . . . . . . . . Interference 1 | . . . . . . . . . . . . . . . . . 1 . . . . . . Siege Activations . | . . . . . . . . . . . . . . . . . . . . . . . . Robots Corrupted 11 | . . . 4 . . . . . . . . . . . 5 . . . . . 1 . 1 Combat Hostiles 10 | . . . 3 . . . . . . . . . . . 5 . . . . . 1 . 1 Parts Fried 38 | . . . 12 3 . . . . . . . . . . 12 . . . . . 8 . 3 Impact Corruptions . | . . . . . . . . . . . . . . . . . . . . . . . . Robots Melted . | . . . . . . . . . . . . . . . . . . . . . . . . Combat Hostiles . | . . . . . . . . . . . . . . . . . . . . . . . . Parts Melted 3 | . 3 . . . . . . . . . . . . . . . . . . . . . . Heat Transferred 2792 | . 1073 . 1249 150 . . . . . . . . . . 320 . . . . . . . . Parts Sabotaged . | . . . . . . . . . . . . . . . . . . . . . . . . Parts Stolen . | . . . . . . . . . . . . . . . . . . . . . . . . Parts Stripped . | . . . . . . . . . . . . . . . . . . . . . . . . Power Chain Reactions 10 | . . . 6 3 . . . . . . . . . . 1 . . . . . . . . Missiles Intercepted . | . . . . . . . . . . . . . . . . . . . . . . . . Alert | -11 -10 -10 -9 -9 -9 -8 -8 -8 -8 -8 -6 -6 -6 -6 -6 -5 -5 -5 -5 -5 -5 -4 -4 ------- Run | Scr Mat Min Mat Min Exi Min Mat Sto Gar Rec Fac Low Low Zio Dee Pro Fac Ext Cet Arc Hub Fac Arm Peak Influence 2657 | . 492 241 888 359 . 481 542 784 725 491 1013 . . . . . 857 794 482 257 2657 1384 979 Initial 1301 | . . 191 11 112 . . 187 228 390 325 923 . . . . . 18 171 444 192 89 1301 677 Average 490 | . 307 198 471 253 . 248 355 478 620 279 935 . . . . . 595 476 458 210 1168 1321 817 Maximum Alert Level 5 | . 2 1 3 1 . 2 2 3 3 2 3 . . . . . 3 3 2 1 5 4 3 Low Security (%) 13 | 100 15 36 10 13 . 44 9 . . 37 . . . . . . 11 2 . 62 9 . . Level 1 34 | . 61 63 20 86 . 42 57 29 2 40 . . . . . . 7 33 . 37 5 . . Level 2 30 | . 23 . 53 . . 13 32 64 80 22 . . . . . . 37 58 100 . 12 . 9 Level 3 16 | . . . 14 . . . . 6 16 . 100 . . . . . 44 6 . . 12 . 90 Level 4 3 | . . . . . . . . . . . . . . . . . . . . . 40 100 . Level 5 1 | . . . . . . . . . . . . . . . . . . . . . 20 . . High Security . | . . . . . . . . . . . . . . . . . . . . . . . . Max Security . | . . . . . . . . . . . . . . . . . . . . . . . . Squads Dispatched 37 | . 9 . 3 1 . . 2 7 . . . . . . . . 6 4 . . 5 . . Investigation 12 | . 7 . 2 1 . . 1 . . . . . . . . . . 1 . . . . . Extermination 2 | . . . . . . . . . . . . . . . . . 2 . . . . . . Reinforcement 11 | . 2 . 1 . . . 1 2 . . . . . . . . 2 2 . . 1 . . Assault 8 | . . . . . . . . 2 . . . . . . . . 2 1 . . 3 . . Garrison 4 | . . . . . . . . 3 . . . . . . . . . . . . 1 . . Intercept . | . . . . . . . . . . . . . . . . . . . . . . . . Construction Impeded . | . . . . . . . . . . . . . . . . . . . . . . . . Haulers Reinforced 1 | . . . . . . . . . . . . . . . . . 1 . . . . . . Stealth | -11 -10 -10 -9 -9 -9 -8 -8 -8 -8 -8 -6 -6 -6 -6 -6 -5 -5 -5 -5 -5 -5 -4 -4 --------- Run | Scr Mat Min Mat Min Exi Min Mat Sto Gar Rec Fac Low Low Zio Dee Pro Fac Ext Cet Arc Hub Fac Arm Distress Signals 16 | . 2 . 3 . . . 2 2 . . . . . . . . 1 1 1 . 3 . 1 Communications Jammed . | . . . . . . . . . . . . . . . . . . . . . . . . Distress Signals . | . . . . . . . . . . . . . . . . . . . . . . . . Times Spotted 529 | . 36 21 53 14 1 18 13 47 16 9 8 4 15 17 45 5 69 31 10 5 50 16 26 Peak Tracking Total 36 | . 7 6 8 3 9 6 6 13 7 3 6 6 8 13 36 4 6 8 10 4 16 12 13 Tactical Retreats 34 | . . 2 4 3 . 1 . 3 3 . . 1 1 1 . 2 5 1 . . 4 1 2 Traps | -11 -10 -10 -9 -9 -9 -8 -8 -8 -8 -8 -6 -6 -6 -6 -6 -5 -5 -5 -5 -5 -5 -4 -4 ------- Run | Scr Mat Min Mat Min Exi Min Mat Sto Gar Rec Fac Low Low Zio Dee Pro Fac Ext Cet Arc Hub Fac Arm Traps Triggered 17 | . 3 . 1 . . . . 2 8 . . . . . . . 2 1 . . . . . Indirectly . | . . . . . . . . . . . . . . . . . . . . . . . . Trap Hack Attempts . | . . . . . . . . . . . . . . . . . . . . . . . . Triggered . | . . . . . . . . . . . . . . . . . . . . . . . . Disarmed . | . . . . . . . . . . . . . . . . . . . . . . . . Reprogrammed . | . . . . . . . . . . . . . . . . . . . . . . . . Reused . | . . . . . . . . . . . . . . . . . . . . . . . . Traps Extracted . | . . . . . . . . . . . . . . . . . . . . . . . . Installed . | . . . . . . . . . . . . . . . . . . . . . . . . Triggered 2 | . . . . . . . . . . . . . 1 . . 1 . . . . . . . Machines | -11 -10 -10 -9 -9 -9 -8 -8 -8 -8 -8 -6 -6 -6 -6 -6 -5 -5 -5 -5 -5 -5 -4 -4 ---------- Run | Scr Mat Min Mat Min Exi Min Mat Sto Gar Rec Fac Low Low Zio Dee Pro Fac Ext Cet Arc Hub Fac Arm Machines Disabled 51 | . . . 2 1 . . . 4 1 . . . . 3 1 . . 2 2 . 32 . 3 Max in Single Turn 14 | . . . 2 1 . . . 1 1 . . . . 1 1 . . 1 1 . 14 . 1 Garrison Access 2 | . . . . . . . . . . . . . . . . . . . . . 2 . . Network Hub 4 | . . . . . . . . . . . . . . . . . . . . . 4 . . Machines Sabotaged . | . . . . . . . . . . . . . . . . . . . . . . . . Garrisons Compromised . | . . . . . . . . . . . . . . . . . . . . . . . . Overloaded Fab Kills . | . . . . . . . . . . . . . . . . . . . . . . . . Fab Network Shutdowns . | . . . . . . . . . . . . . . . . . . . . . . . . Hacking | -11 -10 -10 -9 -9 -9 -8 -8 -8 -8 -8 -6 -6 -6 -6 -6 -5 -5 -5 -5 -5 -5 -4 -4 --------- Run | Scr Mat Min Mat Min Exi Min Mat Sto Gar Rec Fac Low Low Zio Dee Pro Fac Ext Cet Arc Hub Fac Arm Machines Accessed 78 | . 8 . 10 1 1 . 3 10 . 10 2 . . . . . 10 7 2 . 7 1 6 Terminals 64 | . 7 . 10 . . . 2 9 . 4 1 . . . . . 8 7 2 . 7 1 6 Fabricators 3 | . . . . . . . . . . . 1 . . . . . 2 . . . . . . Repair Stations . | . . . . . . . . . . . . . . . . . . . . . . . . Recycling Units 8 | . 1 . . . . . 1 . . 6 . . . . . . . . . . . . . Scanalyzers . | . . . . . . . . . . . . . . . . . . . . . . . . Garrison Access 1 | . . . . . . . . 1 . . . . . . . . . . . . . . . Total Hacks 235 | . 25 . 26 1 1 . 8 36 . 22 6 . . . . . 38 12 4 . 22 2 32 Successful 126 | . 14 . 18 1 1 . 5 23 . 16 4 . . . . . 19 5 2 . 10 2 6 Failed 109 | . 11 . 8 . . . 3 13 . 6 2 . . . . . 19 7 2 . 12 . 26 Catastrophic 23 | . 3 . 2 . . . . 2 . 1 . . . . . . 4 2 . . . . 9 Database Lockouts . | . . . . . . . . . . . . . . . . . . . . . . . . Manual 180 | . 20 . 26 . 1 . 6 21 . 21 4 . . . . . 22 9 1 . 21 1 27 Terminals 211 | . 22 . 26 . . . 6 35 . 15 4 . . . . . 31 12 4 . 22 2 32 Fabricators 9 | . . . . . . . . . . . 2 . . . . . 7 . . . . . . Repair Stations . | . . . . . . . . . . . . . . . . . . . . . . . . Recycling Units 12 | . 3 . . . . . 2 . . 7 . . . . . . . . . . . . . Scanalyzers . | . . . . . . . . . . . . . . . . . . . . . . . . Garrison Access 1 | . . . . . . . . 1 . . . . . . . . . . . . . . . Terminal Hacks 59 | . 4 . 9 1 1 . 2 16 . 6 1 . . . . . 9 4 2 . 1 1 2 Record 1 | . . . . . . . . . . . . . . . . . . . 1 . . . . Part Schematic 2 | . . . . . . . . 1 . . . . . . . . 1 . . . . . . Robot Analysis 10 | . 3 . 3 . . . . 1 . 2 . . . . . . . . . . . . 1 Prototype ID Bank 4 | . . . . . . . 1 3 . . . . . . . . . . . . . . . Open Door 9 | . . . . 1 . . . 3 . . . . . . . . 1 3 1 . . . . Branch Access Points 3 | . . . 1 . . . . . . . . . . . . . 1 . . . . 1 . Terminal Index 1 | . . . . . . . . . . . . . . . . . . . . . . . 1 Unreport Threat 18 | . . . 5 . . . . 3 . 4 1 . . . . . 5 . . . . . . Locate Traps 2 | . . . . . . . . 2 . . . . . . . . . . . . . . . Recall Extermination 1 | . . . . . . . . . . . . . . . . . 1 . . . . . . Recall Reinforcements 1 | . . . . . . . . . . . . . . . . . . 1 . . . . . Hauler Manifests 3 | . 1 . . . . . 1 1 . . . . . . . . . . . . . . . Registered Prototypes 1 | . . . . . . . . 1 . . . . . . . . . . . . . . . Zone Layout 2 | . . . . . . . . 1 . . . . . . . . . . . . 1 . . EX-Prototype ID Bank 1 | . . . . . 1 . . . . . . . . . . . . . . . . . . Fabricator Hacks 8 | . . . . . . . . . . . 2 . . . . . 6 . . . . . . Load Schematic 3 | . . . . . . . . . . . 1 . . . . . 2 . . . . . . Build 5 | . . . . . . . . . . . 1 . . . . . 4 . . . . . . Repair Station Hacks . | . . . . . . . . . . . . . . . . . . . . . . . . Recycling Unit Hacks 4 | . 2 . . . . . 1 . . 1 . . . . . . . . . . . . . Report Inventory 3 | . 1 . . . . . 1 . . 1 . . . . . . . . . . . . . Retrieve Components 1 | . 1 . . . . . . . . . . . . . . . . . . . . . . Scanalyzer . | . . . . . . . . . . . . . . . . . . . . . . . . Garrison Access Hacks 1 | . . . . . . . . 1 . . . . . . . . . . . . . . . Unlock Access 1 | . . . . . . . . 1 . . . . . . . . . . . . . . . Unauthorized Hacks 54 | . 8 . 9 . . . 2 6 . 9 1 . . . . . 4 1 . . 9 1 4 Terminals 46 | . 7 . 9 . . . 1 6 . 3 1 . . . . . 4 1 . . 9 1 4 Track 7 | . . . . . . . . 1 . . . . . . . . . . . . 3 . 3 Assimilate 2 | . . . . . . . . . . . . . . . . . . . . . 2 . . Botnet 34 | . 5 . 9 . . . 1 5 . 3 1 . . . . . 4 1 . . 3 1 1 Disrupt 1 | . . . . . . . . . . . . . . . . . . . . . 1 . . Search 2 | . 2 . . . . . . . . . . . . . . . . . . . . . . Fabricators . | . . . . . . . . . . . . . . . . . . . . . . . . Repair Stations . | . . . . . . . . . . . . . . . . . . . . . . . . Recycling Units 8 | . 1 . . . . . 1 . . 6 . . . . . . . . . . . . . Tunnel 8 | . 1 . . . . . 1 . . 6 . . . . . . . . . . . . . Scanalyzers . | . . . . . . . . . . . . . . . . . . . . . . . . Garrison Access . | . . . . . . . . . . . . . . . . . . . . . . . . Data Cores Recovered 5 | . . . 1 . . . . 1 . . . . . . . . 2 . . . 1 . . Used 3 | . . . . . . . . 1 . . . . . . . . 2 . . . . . . Hacking Detections 50 | . 6 . 7 . . . 2 6 . 2 2 . . . . . 8 5 1 . 5 1 5 Full Trace Events 6 | . 3 . 2 . . . . . . . . . . . . . . 1 . . . . . Feedback Events . | . . . . . . . . . . . . . . . . . . . . . . . . Feedback Blocked . | . . . . . . . . . . . . . . . . . . . . . . . . Robot Schematics Acquired . | . . . . . . . . . . . . . . . . . . . . . . . . Robots Built . | . . . . . . . . . . . . . . . . . . . . . . . . Matter . | . . . . . . . . . . . . . . . . . . . . . . . . Time . | . . . . . . . . . . . . . . . . . . . . . . . . Total Robot Build Rating . | . . . . . . . . . . . . . . . . . . . . . . . . Part Schematics Acquired 2 | . . . . . . . . 1 . . . . . . . . 1 . . . . . . Parts Built 3 | . . . . . . . . . . . 1 . . . . . 2 . . . . . . Matter 650 | . . . . . . . . . . . 146 . . . . . 504 . . . . . . Time 341 | . . . . . . . . . . . 73 . . . . . 268 . . . . . . Total Part Build Rating 11 | . . . . . . . . . . . 3 . . . . . 8 . . . . . . Parts Repaired . | . . . . . . . . . . . . . . . . . . . . . . . . Time . | . . . . . . . . . . . . . . . . . . . . . . . . Parts Recycled . | . . . . . . . . . . . . . . . . . . . . . . . . Recycled Matter . | . . . . . . . . . . . . . . . . . . . . . . . . Retrieved Matter . | . . . . . . . . . . . . . . . . . . . . . . . . Retrieved Components 10 | . 10 . . . . . . . . . . . . . . . . . . . . . . Parts Scanalyzed . | . . . . . . . . . . . . . . . . . . . . . . . . Part Schematics Acquired . | . . . . . . . . . . . . . . . . . . . . . . . . Parts Damaged . | . . . . . . . . . . . . . . . . . . . . . . . . Bothacking | -11 -10 -10 -9 -9 -9 -8 -8 -8 -8 -8 -6 -6 -6 -6 -6 -5 -5 -5 -5 -5 -5 -4 -4 ------------ Run | Scr Mat Min Mat Min Exi Min Mat Sto Gar Rec Fac Low Low Zio Dee Pro Fac Ext Cet Arc Hub Fac Arm Used RIF Installer 1 | . . . . . . . . . 1 . . . . . . . . . . . . . . Robots Hacked . | . . . . . . . . . . . . . . . . . . . . . . . . Non-combat . | . . . . . . . . . . . . . . . . . . . . . . . . Combat . | . . . . . . . . . . . . . . . . . . . . . . . . Robot Hacks Applied . | . . . . . . . . . . . . . . . . . . . . . . . . Relay Couplers Released 2 | . . . . . . . . . . . . . . . . . . . . . 2 . . Machine Destruction 2 | . . . . . . . . . . . . . . . . . . . . . 2 . . Robots Rewired 1 | . . . . . . . . . . . . . . . . . . . . . . . 1 Allies Hacked . | . . . . . . . . . . . . . . . . . . . . . . . . Hacks Repelled . | . . . . . . . . . . . . . . . . . . . . . . . . Allies | -11 -10 -10 -9 -9 -9 -8 -8 -8 -8 -8 -6 -6 -6 -6 -6 -5 -5 -5 -5 -5 -5 -4 -4 -------- Run | Scr Mat Min Mat Min Exi Min Mat Sto Gar Rec Fac Low Low Zio Dee Pro Fac Ext Cet Arc Hub Fac Arm Total Allies 15 | . . 3 . 3 . . . 2 . . . . . . . . . 4 . . 2 . 1 Largest Group 3 | . . 3 . 2 1 . . 2 . . . . . . . . . 3 1 . 1 . 1 Highest-Rated Group 218 | . . 40 . 39 31 . . 62 . . . . . . . . . 218 156 . 26 . 56 Highest-Rated Ally 156 | . . 16 . 31 31 . . 31 . . . . . . . . . 156 156 . 26 . 56 Total Orders 1 | . . . . . . . . . . . . . . . . . . . . . 1 . . STAY 1 | . . . . . . . . . . . . . . . . . . . . . 1 . . Ally Attacks 65 | . . 26 . 5 . . . 15 . . . . . . 3 . . 13 . . . . 3 Total Damage 1197 | . . 227 . 42 . . . 166 . . . . . . 158 . . 353 . . . . 251 Kills 11 | . . 3 . . . . . . . . . . . . 2 . . 6 . . . . . Allies Corrupted . | . . . . . . . . . . . . . . . . . . . . . . . . Allies Melted . | . . . . . . . . . . . . . . . . . . . . . . . . Turrets Deployed 1 | . . . . . . . . . . . . . . . 1 . . . . . . . . Intel | -11 -10 -10 -9 -9 -9 -8 -8 -8 -8 -8 -6 -6 -6 -6 -6 -5 -5 -5 -5 -5 -5 -4 -4 ------- Run | Scr Mat Min Mat Min Exi Min Mat Sto Gar Rec Fac Low Low Zio Dee Pro Fac Ext Cet Arc Hub Fac Arm Robot Analysis Total 10 | . 3 . 3 . . . . 1 . 2 . . . . . . . . . . . . 1 Derelict Logs Recovered 4 | . . 1 . 1 . . . . . . . . 1 . . 1 . . . . . . . Drone Launches . | . . . . . . . . . . . . . . . . . . . . . . . . Drone Recoveries . | . . . . . . . . . . . . . . . . . . . . . . . . Exploration | -11 -10 -10 -9 -9 -9 -8 -8 -8 -8 -8 -6 -6 -6 -6 -6 -5 -5 -5 -5 -5 -5 -4 -4 ------------- Run | Scr Mat Min Mat Min Exi Min Mat Sto Gar Rec Fac Low Low Zio Dee Pro Fac Ext Cet Arc Hub Fac Arm Turns Passed 7440 | 33 1001 453 894 649 127 240 114 464 174 132 137 48 169 135 375 73 1210 300 40 8 395 93 176 Spaces Moved 12398 | 36 1050 528 1289 710 236 520 228 602 264 465 119 168 357 275 709 240 1876 797 128 44 998 311 448 Core 10 | 4 . . . . . . . . . . . . . . . . . . . . . . 6 Treads . | . . . . . . . . . . . . . . . . . . . . . . . . Legs . | . . . . . . . . . . . . . . . . . . . . . . . . Wheels 338 | 32 306 . . . . . . . . . . . . . . . . . . . . . . Hover 1369 | . 744 528 97 . . . . . . . . . . . . . . . . . . . . Flight 10681 | . . . 1192 710 236 520 228 602 264 465 119 168 357 275 709 240 1876 797 128 44 998 311 442 Fastest Speed 8 | 50 56 56 22 22 22 22 22 20 20 20 20 20 20 20 10 10 10 10 10 10 8 10 8 Average Speed 25 | 76 62 56 28 22 22 22 22 20 20 20 20 20 20 20 19 15 18 13 10 10 14 15 18 Slowest Speed 150 | 80 80 116 120 22 22 22 22 22 20 20 20 20 20 20 90 20 20 15 10 10 90 18 150 Overloaded Moves 92 | . . . . . . . . . . . . . . . . . . . . . 60 . 32 Propulsion Burnouts . | . . . . . . . . . . . . . . . . . . . . . . . . Robots Hopped 99 | . . . 20 5 . 1 . 7 . . . . . . . 2 24 23 . . 14 1 2 Cave-ins Triggered . | . . . . . . . . . . . . . . . . . . . . . . . . Exploration Rate (%) 60 | 4 95 73 98 96 62 97 31 93 51 99 4 38 55 40 64 51 49 72 59 71 85 11 47 Regions Visited 23 Branch Regions 16 Pre-discovered Areas 8 | . 1 . . . . . 1 . . 6 . . . . . . . . . . . . . Known Exits Taken 5 | . . . 1 . . . 1 1 . . . . . . . . 1 . . . . 1 . Unknown Exits Taken 17 | 1 1 1 . 1 1 1 . . . 1 1 1 1 1 1 1 . 1 1 1 1 . . Scrap Searched 11 | . . 1 . 1 . 1 . . . . . 1 2 3 . 2 . . . . . . . Spaces Dug 32 | . . . . 1 . 1 2 . . 1 . . 5 . 5 . 6 1 . . 5 1 4 Terrain Destroyed 758 | . . 17 17 24 . 1 2 . . 1 . . 5 . 8 . 6 1 . . 671 1 4 Melee 29 | . . . . 1 . 1 2 . . 1 . . 5 . 5 . 6 1 . . 2 1 4 Projectile 4 | . . . . . . . . . . . . . . . . . . . . . 4 . . AOE 725 | . . 17 17 23 . . . . . . . . . . 3 . . . . . 665 . . Terrain Rammed . | . . . . . . . . . . . . . . . . . . . . . . . . Walls Destroyed . | . . . . . . . . . . . . . . . . . . . . . . . . Machines Disabled . | . . . . . . . . . . . . . . . . . . . . . . . . Actions | -11 -10 -10 -9 -9 -9 -8 -8 -8 -8 -8 -6 -6 -6 -6 -6 -5 -5 -5 -5 -5 -5 -4 -4 --------- Run | Scr Mat Min Mat Min Exi Min Mat Sto Gar Rec Fac Low Low Zio Dee Pro Fac Ext Cet Arc Hub Fac Arm Total 15410 | 39 1235 607 1549 1153 308 602 276 821 355 483 218 178 420 323 868 267 2569 929 147 45 1164 347 507 Wait 1543 | . 54 26 58 382 63 31 19 85 9 1 82 8 27 28 38 27 428 76 2 . 57 30 12 Move 12202 | 35 1049 527 1250 699 235 517 227 589 263 464 118 167 356 274 708 236 1837 758 127 43 971 308 444 Hop 75 | . . . 18 5 . 1 . 6 . . . . . . . 1 14 15 . . 12 1 2 Pick Up 30 | . 4 1 1 7 2 2 . . . . . . . . 2 . 6 2 . . 3 . . Fast Attach 95 | 4 7 1 24 4 2 . 1 6 . . 1 1 1 . 16 . 10 3 4 . 6 3 1 Attach 8 | . . 1 . 1 . 1 . . . . . . . . 1 . 1 . . . 2 . 1 Detach 13 | . . . 1 1 . . . 1 . . . . . . 3 . 4 . . . 2 . 1 Swap 23 | . 1 2 6 1 . . . 2 . . . . . . 4 . 4 . . . 3 . . Drop 103 | . 4 1 22 13 4 1 . 6 . . . . . . 19 . 14 4 4 . 8 1 2 Fire 299 | . 76 39 123 22 . . . . . . . . . . 18 . . . . . 12 . 9 Melee 518 | . . . . 3 2 31 22 76 19 13 8 2 21 21 38 3 123 43 10 2 60 4 17 Ram 1 | . . . 1 . . . . . . . . . . . . . . . . . . . . Kick . | . . . . . . . . . . . . . . . . . . . . . . . . Crush . | . . . . . . . . . . . . . . . . . . . . . . . . Escape Stasis 50 | . . . . . . . . 9 41 . . . . . . . . . . . . . . Rewire 18 | . . . . . . . . . . . . . . . . . . . . . . . 18 Trap . | . . . . . . . . . . . . . . . . . . . . . . . . Miscellaneous 432 | . 40 9 45 15 . 18 7 41 23 5 9 . 15 . 21 . 128 28 . . 28 . . Route ------- -11/Scrapyard -10/Materials (discovered 4 exits: *Mat x3 / [*Min]) -10/Mines -9/Materials (discovered 4 exits: *Mat x3 / *Min) -9/Mines (discovered 3 exits: *Mat x2 / *Exi) -9/Exiles (discovered 2 exits: [*Min x2]) -8/Mines (discovered 2 exits: *Mat x2) -8/Materials (discovered 2 exits: [*Fac] / *Sto) -8/Storage (discovered 2 exits: [*Fac] / Gar) -8/Garrison (discovered 2 exits: *Rec x2) -8/Recycling -6/Factory -6/Lower Caves -6/Lower Caves -6/Zion (discovered 2 exits: [*Dee] / [*Pro]) -6/Deep Caves -5/Proximity Caves -5/Factory (discovered 6 exits: *Fac x2 / *Upp x2 / *Ext x2) -5/Extension (discovered 2 exits: *Fac / *Cet) -5/Cetus -5/Archives -5/Hub_04(d) (discovered 4 exits: *Fac x4) -4/Factory (discovered 3 exits: Upp x2 / *Arm) -4/Armory History --------- Turn | Location | Event 7 | -11/Scrapyard | Discovered new exit (range 16) 12 | -11/Scrapyard | Upgraded with Weapon slot (x1) 34 | -11/Scrapyard | Entered Materials 224 | -10/Materials | Discovered new exit (range 13) 242 | -10/Materials | Upgraded with Propulsion slot (x1) 339 | -10/Materials | Build established: Hacker-Mutant 416 | -10/Materials | Discovered new exit (range 8) 439 | -10/Materials | Reached level 2 513 | -10/Materials | Upgraded with Utility slot (x1) 578 | -10/Materials | Discovered new exit (range 15) 713 | -10/Materials | Discovered new exit (range 16) 935 | -10/Materials | Reached level 3 1035 | -10/Materials | Entered Mines 1077 | -10/Mines | Received a Rocket Launcher from a helpful Derelict 1081 | -10/Mines | Upgraded with Utility slot (x1) 1195 | -10/Mines | Assembled infested the area 1227 | -10/Mines | Assisted by bots powering up and referring to "LRC-V3" 1319 | -10/Mines | Destroyed 8 combat bots 1384 | -10/Mines | Discovered new exit (range 5) 1488 | -10/Mines | Entered Materials 1490 | -9/Materials | Reached level 4 1527 | -9/Materials | Reached level 5 1677 | -9/Materials | Identified exit to Mines 1728 | -9/Materials | Reached level 6 1767 | -9/Materials | Core integrity fell below 50% 1797 | -9/Materials | Upgraded with Propulsion slot (x1) 1893 | -9/Materials | Build established: Hacker-Sprinter 1953 | -9/Materials | Reached level 7 1999 | -9/Materials | Upgraded with Propulsion slot (x1) 2000 | -9/Materials | Upgraded with Power slot (x1) 2072 | -9/Materials | Upgraded with Propulsion slot (x1) 2074 | -9/Materials | Upgraded with Power slot (x1) 2103 | -9/Materials | Discovered new exit (range 15) 2169 | -9/Materials | Reached level 8 2214 | -9/Materials | Upgraded with Propulsion slot (x1) 2223 | -9/Materials | Discovered new exit (range 16) 2249 | -9/Materials | Upgraded with Weapon slot (x1) 2360 | -9/Materials | Discovered new exit (range 16) 2382 | -9/Materials | Entered Mines 2388 | -9/Mines | Met a Derelict bent on vengeance 2395 | -9/Mines | Received a Mining Laser from a helpful Derelict 2418 | -9/Mines | A weapon hastily lodged in a ceiling crevice suddenly fell to the ground 2455 | -9/Mines | Reached level 9 2484 | -9/Mines | Learned Materials emergency access door positions 2572 | -9/Mines | Met a Derelict shopkeep closing up shop 2767 | -9/Mines | Discovered new exit (range 8) 2768 | -9/Mines | Discovered new exit (range 7) 2808 | -9/Mines | Met a Derelict who couldn't figure out how to use a Trap Extractor 2847 | -9/Mines | Deemed a non-threat by the Exiles lab entrance 2847 | -9/Mines | Discovered new exit (range 5) 3031 | -9/Mines | Entered Exiles 3031 | -9/Exiles | Accompanied by 1 ally 3035 | -9/Exiles | Discovered new exit (range 15) 3037 | -9/Exiles | Met 8R-AWN 3041 | -9/Exiles | Met EX-HEX 3047 | -9/Exiles | Met EX-BIN 3050 | -9/Exiles | Aligned with FarCom system 3050 | -9/Exiles | Given EX-Vault access code 3055 | -9/Exiles | Opened EX-Vault 3057 | -9/Exiles | Found Gui. Plasma Cannon 3061 | -9/Exiles | Led the pair of lost Derelicts to a safe place 3063 | -9/Exiles | Warned to stay clear of 0b10 Research branches 3067 | -9/Exiles | Exiles lab attacked by MAIN.C 3119 | -9/Exiles | Attacked by the Exiles 3120 | -9/Exiles | Destroyed EX-DEC 3124 | -9/Exiles | Found Deploy-a-Sentry 3132 | -9/Exiles | Discovered new exit (range 10) 3158 | -9/Exiles | Stole two prototypes: Gui. Plasma Cannon, Deploy-a-Sentry 3158 | -9/Exiles | Entered Mines 3182 | -8/Mines | Reached level 10 3278 | -8/Mines | Discovered new exit (range 7) 3335 | -8/Mines | Destroyed 7 combat bots 3353 | -8/Mines | Discovered new exit (range 9) 3374 | -8/Mines | Reached level 11 3378 | -8/Mines | Upgraded with Weapon slot (x1) 3398 | -8/Mines | Entered Materials 3399 | -8/Materials | Identified exit to Storage 3432 | -8/Materials | Discovered new exit (range 16) 3434 | -8/Materials | Reached level 12 3475 | -8/Materials | Upgraded with Weapon slot (x1) 3512 | -8/Materials | Entered Storage 3627 | -8/Storage | Garrison activated, responded to threat 3644 | -8/Storage | Reached level 13 3665 | -8/Storage | Destroyed 7 combat bots 3732 | -8/Storage | Discovered new exit (range 7) 3772 | -8/Storage | Upgraded with Utility slot (x1) 3802 | -8/Storage | Met a pair of Derelict thieves 3803 | -8/Storage | Upgraded with Utility slot (x1) 3941 | -8/Storage | Destroyed 12 combat bots 3976 | -8/Storage | Identified exit to Garrison 3976 | -8/Storage | Entered Garrison 3981 | -8/Garrison | Triggered checkpoint 3994 | -8/Garrison | Triggered checkpoint 4011 | -8/Garrison | Reached level 14 4045 | -8/Garrison | Core integrity fell below 50% 4071 | -8/Garrison | Build established: Scavenger-Sprinter 4086 | -8/Garrison | Destroyed 8 combat bots 4105 | -8/Garrison | Discovered new exit (range 10) 4114 | -8/Garrison | Triggered checkpoint 4145 | -8/Garrison | Discovered new exit (range 11) 4149 | -8/Garrison | Installed Relay Interface Framework 4150 | -8/Garrison | Entered Recycling 4155 | -8/Recycling | Spotter reported a threat 4169 | -8/Recycling | Spotter reported a threat 4199 | -8/Recycling | Spotter reported a threat 4200 | -8/Recycling | Spotter reported a threat 4243 | -8/Recycling | Spotter reported a threat 4252 | -8/Recycling | Spotter reported a threat 4271 | -8/Recycling | Spotter reported a threat 4277 | -8/Recycling | Discovered new exit (range 8) 4282 | -8/Recycling | Entered Factory 4284 | -6/Factory | Reached level 15 4301 | -6/Factory | Upgraded with Utility slot (x1) 4360 | -6/Factory | Fabricated Actuator Array (x1) 4363 | -6/Factory | Discovered new exit (range 16) 4419 | -6/Factory | Entered Lower Caves 4419 | -6/Lower Caves | Spotted B-75 Beast 4421 | -6/Lower Caves | Reached level 16 4442 | -6/Lower Caves | Upgraded with Utility slot (x1) 4466 | -6/Lower Caves | Discovered new exit (range 9) 4467 | -6/Lower Caves | Entered another Lower Caves area 4486 | -6/Lower Caves | Core integrity fell below 50% 4564 | -6/Lower Caves | Reached level 17 4632 | -6/Lower Caves | Learned Factory terminal intel 4635 | -6/Lower Caves | Discovered new exit (range 10) 4636 | -6/Lower Caves | Entered Zion 4653 | -6/Zion | Discovered new exit (range 12) 4685 | -6/Zion | RIF detected upon attempting to enter Zion 4685 | -6/Zion | Attacked by Zionites 4685 | -6/Zion | Spotted Q1-Y86(B) 4685 | -6/Zion | Spotted 74-KCV(B) 4770 | -6/Zion | Discovered new exit (range 4) 4770 | -6/Zion | Saw the warning signs outside the Deep Caves entrance 4771 | -6/Zion | Entered Deep Caves 4773 | -6/Deep Caves | Reached level 18 4825 | -6/Deep Caves | Attacked by Z-Imprinter 4833 | -6/Deep Caves | Destroyed Z-Imprinter 4861 | -6/Deep Caves | Found Prototype Protection 4861 | -6/Deep Caves | Identified Zio. Weapon Casing 4866 | -6/Deep Caves | Found Prototype Device 4866 | -6/Deep Caves | Identified Zio. Metafield Generator 4903 | -6/Deep Caves | Z-Facility disabled 4939 | -6/Deep Caves | Found Prototype Protection 4939 | -6/Deep Caves | Identified Zio. Heavy Carapace 4973 | -6/Deep Caves | Found Zio. Weapon Casing 5014 | -6/Deep Caves | Discovered new exit (range 6) 5052 | -6/Deep Caves | Spotted as-31771 5108 | -6/Deep Caves | Destroyed as-31771 5118 | -6/Deep Caves | Exposed GOLEM chamber 5131 | -6/Deep Caves | Found GOLEM Unit 5134 | -6/Deep Caves | Triggered Deep Caves wall 5136 | -6/Deep Caves | DAS Turret deployed 5146 | -6/Deep Caves | Entered Proximity Caves 5148 | -5/Proximity Caves | Reached level 19 5186 | -5/Proximity Caves | Learned Factory garrison access intel 5200 | -5/Proximity Caves | Spotted Z6-ERG(f) 5201 | -5/Proximity Caves | Encountered a Master Thief 5207 | -5/Proximity Caves | Spotted B-75 Beast 5218 | -5/Proximity Caves | Discovered new exit (range 10) 5219 | -5/Proximity Caves | Entered Factory 5220 | -5/Factory | Loaded intel: 22 terminal locations 5220 | -5/Factory | Core integrity fell below 50% 5221 | -5/Factory | Loaded intel: 3 garrison access locations 5221 | -5/Factory | Reached level 20 5236 | -5/Factory | Discovered new exit (range 11) 5299 | -5/Factory | Upgraded with Propulsion slot (x1) 5476 | -5/Factory | Reached level 21 5622 | -5/Factory | Discovered new exit (range 16) 5633 | -5/Factory | Upgraded with Propulsion slot (x1) 5682 | -5/Factory | Spotted B-75 Beast 5691 | -5/Factory | Destroyed B-75 Beast 5819 | -5/Factory | First assault squad dispatched 5914 | -5/Factory | Discovered new exit (range 8) 5915 | -5/Factory | Destroyed 7 combat bots 5945 | -5/Factory | Identified exit to Upper Caves 5945 | -5/Factory | Identified exit to Extension 6176 | -5/Factory | Fabricated Cld. VTOL Module? 6262 | -5/Factory | Reached level 22 6313 | -5/Factory | Fabricated Cld. VTOL Module (x1) 6362 | -5/Factory | Discovered new exit (range 9) 6415 | -5/Factory | Found Prototype Processor 6415 | -5/Factory | Identified Exp. Signal Interpreter 6429 | -5/Factory | Entered Extension 6438 | -5/Extension | Rescued a captive Derelict 6473 | -5/Extension | Rescued a captive Derelict 6474 | -5/Extension | Rescued a captive Derelict 6508 | -5/Extension | Rescued A7 6619 | -5/Extension | Spotted B-75 Beast 6620 | -5/Extension | Spotted B-75 Beast 6631 | -5/Extension | Destroyed B-75 Beast 6636 | -5/Extension | Destroyed B-75 Beast 6702 | -5/Extension | Discovered new exit (range 16) 6702 | -5/Extension | Discovered new exit (range 15) 6707 | -5/Extension | Disrupted transfer network 6715 | -5/Extension | Reached level 23 6729 | -5/Extension | First assault squad dispatched 6729 | -5/Extension | Entered Cetus 6729 | -5/Cetus | Accompanied by 1 ally (A7) 6734 | -5/Cetus | Acquired a Cetus Manufacturing Module code from A7 6736 | -5/Cetus | Destroyed A7 6737 | -5/Cetus | Extracted ID and sensor layout for unrecognized location from A7's data core 6738 | -5/Cetus | Found Prototype Protection 6738 | -5/Cetus | Identified Med. Regenerative Plating 6751 | -5/Cetus | Spotted Cetus Guard 6751 | -5/Cetus | Spotted Cetus Guard 6751 | -5/Cetus | Spotted Cetus Guard 6751 | -5/Cetus | Spotted Cetus Guard 6754 | -5/Cetus | Started Cetus Manufacturing Module 6766 | -5/Cetus | Found a strange terminal 6767 | -5/Cetus | Discovered new exit (range 15) 6769 | -5/Cetus | Entered Archives 6776 | -5/Archives | Discovered new exit (range 16) 6777 | -5/Archives | Entered Hub_04(d) 6809 | -5/Hub_04(d) | Discovered new exit (range 7) 6885 | -5/Hub_04(d) | Network Hub disabled 6928 | -5/Hub_04(d) | Discovered new exit (range 6) 6963 | -5/Hub_04(d) | Discovered new exit (range 12) 6969 | -5/Hub_04(d) | Spotted Lightning 6976 | -5/Hub_04(d) | Spotted Lightning 6978 | -5/Hub_04(d) | Spotted Lightning 6985 | -5/Hub_04(d) | Reached level 24 6985 | -5/Hub_04(d) | Destroyed Lightning 6989 | -5/Hub_04(d) | Found Prototype Energy Cannon 6991 | -5/Hub_04(d) | Found Prototype Device 6991 | -5/Hub_04(d) | Identified EM Dispersion Field 7006 | -5/Hub_04(d) | Destroyed 10 combat bots 7008 | -5/Hub_04(d) | Identified EMDS 7009 | -5/Hub_04(d) | Upgraded with Power slot (x1) 7042 | -5/Hub_04(d) | Destroyed Lightning 7047 | -5/Hub_04(d) | Destroyed Lightning 7050 | -5/Hub_04(d) | Found Prototype Processor 7050 | -5/Hub_04(d) | Identified Exp. Targeting Computer 7053 | -5/Hub_04(d) | Found Prototype Device 7053 | -5/Hub_04(d) | Identified Exp. Phase Shifter 7077 | -5/Hub_04(d) | First assault squad dispatched 7085 | -5/Hub_04(d) | Garrison activated, responded to threat 7093 | -5/Hub_04(d) | Network Hub disabled 7093 | -5/Hub_04(d) | Spotted Lightning 7093 | -5/Hub_04(d) | Spotted Lightning 7093 | -5/Hub_04(d) | Spotted Lightning 7131 | -5/Hub_04(d) | Network Hub disabled 7134 | -5/Hub_04(d) | Spotted Lightning 7134 | -5/Hub_04(d) | Spotted Lightning 7137 | -5/Hub_04(d) | Spotted Lightning 7155 | -5/Hub_04(d) | Discovered new exit (range 4) 7158 | -5/Hub_04(d) | Spotted B-75 Beast 7165 | -5/Hub_04(d) | Network Hub disabled 7172 | -5/Hub_04(d) | Entered Factory 7173 | -4/Factory | Core integrity fell below 50% 7189 | -4/Factory | Found Prototype Processor 7189 | -4/Factory | Identified Exp. Melee Analysis Suite 7193 | -4/Factory | Identified exit to Upper Caves 7193 | -4/Factory | Identified exit to Armory 7265 | -4/Factory | Entered Armory 7267 | -4/Armory | Reached level 25 7396 | -4/Armory | Spotted B-86 Titan 7426 | -4/Armory | Core integrity fell below 20% 7441 | -4/Armory | Destroyed by Y-64 Sentinel with KE Penetrator Last Messages --------------- Power Sword follow-up attack on Y-64 Sentinel. Y-64 Sentinel destroyed. Connecting with Terminal... Penetrated by Slug. Slug penetrates Compression Vault. Penetrated by Slug. Katana follow-up attack on H-77 Assassin. Power Sword follow-up attack on H-77 Assassin. Penetrated by Slug. Nuclear Pulse Thruster destroyed. H-77 Assassin destroyed. Penetrated by Slug. Slug penetrates Wall. H-77 Assassin suffers critical hit. Destroyed Coil Gun. Protomatter-57 decays. Penetrated by Slug. Compression Vault explodes. H-77 Assassin destroyed. Penetrated by Slug. Map ----- +----------------------------------------------------+ | ?????????????????????????????????????????????????? | | ?????????????????????????????????????????????????? | | ?????????????????????????????????????????????????? | | ?????????????????????????????????????????????????? | | ?????????????????????????????????????????????????? | | ?????????????????????????????????????????????????? | | ?????????????????????????????????????????????????? | | ?????????????????????????????????????????????????? | | ?????????????????????????????????????????????????? | | ?????????????????????????????????????????????????? | | ??????????????????????????????????????############ | | ????????????????????????????????????? | | ???????????????????????????????????? | | ???????????????????????????????????# | | ??????????????##+#?????????????????# | | ?????????????? ### #######??????# """"""" | | ?????????????/ g ? ?????+ """"""" | | ?????????????# ????# | | ?????????????#[ [[[ ???# | | ??????????????? [[ ##########++###### | | ???????????????"" [[ # | | ?????????????#"F" # | | ?????????????#" ##+############ # | | ??????????????""" #??????# #???????? # | | ??????????????""" =####### #????#???# | | ?????????????# [@[=!!* #???## | | ?????????????# Y ####### # | | ?????????????# ##+####???????#! +? | | ????????????????????????????????########?????# | | ?????????????????????????????????????????????????? | | ?????????????????????????????????????????????????? | | ?????????????????????????????????????????????????? | | ?????????????????????????????????????????????????? | | ?????????????????????????????????????????????????? | | ?????????????????????????????????????????????????? | | ?????????????????????????????????????????????????? | | | | | | | | | | | | | | | | | | | | | | | | | | | | | +----------------------------------------------------+ Best States ------------- Heat Dissipation 127 Energy Generation 71 Energy Capacity 640 Matter Stores 300 Matter Capacity 300 Sight Range 16 Terrain Scan Density 10 Armor Coverage 1200 Resistance: EM 75 Propulsion Shielding 33 Utility Shielding 66 Weapon Shielding 100 Melee Speed Boost 20 Phase Shifting 20 Evasion (%) 87 Melee Accuracy 8 Target Analysis 5 Core Analysis 10 Armor Integrity Analysis 50 Offensive Hacking 10 Defensive Hacking 10 Item Schematics ----------------- Actuator Array | -8/Storage | Hacked Cld. VTOL Module | -5/Factory | Hacked Robot Schematics ------------------ None Fabricated ------------ Actuator Array | x1 | -6/Factory Cld. VTOL Module | x1 | -5/Factory Cld. VTOL Module | x1 | -5/Factory Alien Tech Used ----------------- None Achievements -------------- Treasure Hunter Challenges ------------ None RPGLIKE | -11 -10 -10 -9 -9 -9 -8 -8 -8 -8 -8 -6 -6 -6 -6 -6 -5 -5 -5 -5 -5 -5 -4 -4 --------- Run | Scr Mat Min Mat Min Exi Min Mat Sto Gar Rec Fac Low Low Zio Dee Pro Fac Ext Cet Arc Hub Fac Arm Levels Raised 24 | . 2 . 5 1 . 2 1 1 1 . 1 1 1 . 1 1 3 1 . . 1 . 1 XP Earned 39891 | 3000 3445 1000 6862 1197 169 2420 1886 2228 560 498 1938 653 1690 349 1185 1150 4699 1178 143 118 1783 806 934 XP Spent 38205 | 500 3900 1400 7700 1100 . 2500 1400 2500 . . 1700 2000 . . 3655 . 6040 1360 . . 1650 . 800 Upgrades 75 | 1 10 2 13 1 . 5 1 2 . . 1 1 . . 22 . 9 4 . . 2 . 1 Power Slot 3 | . . . 2 . . . . . . . . . . . . . . . . . 1 . . Propulsion Slot 7 | . 1 . 4 . . . . . . . . . . . . . 2 . . . . . . Utility Slot 6 | . 1 1 . . . . . 2 . . 1 1 . . . . . . . . . . . Weapon Slot 4 | 1 . . 1 . . 1 1 . . . . . . . . . . . . . . . . Core Integrity 19 | . . . . . . . . . . . . . . . 19 . . . . . . . . Heat Dissipation 17 | . . . 6 . . . . . . . . . . . 1 . 6 4 . . . . . Energy Generation 3 | . . . . . . . . . . . . . . . . . 1 . . . 1 . 1 Mass Support 3 | . 1 1 . 1 . . . . . . . . . . . . . . . . . . . Inventory Capacity 3 | . 3 . . . . . . . . . . . . . . . . . . . . . . Melee Accuracy 6 | . . . . . . 4 . . . . . . . . 2 . . . . . . . . Hack Attack % 2 | . 2 . . . . . . . . . . . . . . . . . . . . . . Hack Defense % 2 | . 2 . . . . . . . . . . . . . . . . . . . . . . Protomatter Created 4137 | . 401 57 296 104 . 199 127 696 147 22 60 . 128 . 172 . 943 281 . . 384 . 120 Integrity Restored 8960 | . 705 174 939 300 . 383 138 745 489 61 169 . 345 . 429 . 2825 616 . . 642 . . Core 7945 | . 477 174 939 108 . 278 114 636 489 35 57 . 345 . 429 . 2809 413 . . 642 . . Parts 1015 | . 228 . . 192 . 105 24 109 . 26 112 . . . . . 16 203 . . . . . Protomatter Decayed 980 | . 116 2 25 83 64 18 . 337 . . . . 40 . . . 80 . . . 158 . 57 Game ------ Seed TrackerFlakDissipator Manual? 0 Play Time 02:37:59 Cumulative 235.6 hours Start 2020.09.12 @ 05:01:11 End 2020.09.12 @ 07:39:36 Sessions 1 Manual Loads 0 Difficulty Rogue Special Mode Winter2019/RPGLIKE Game No. 249 Rogue 249 Adventurer 0 Explorer 0 Win Type - Total 12 Types 8/0/3/1/0/0/0/0/0 Lore% 76 Gallery% 87 Achievement% 67 Wizard Run 0 Options --------- ASCII 0 Keyboard 1 Movement Numpad Keybinds 0 Fullscreen 1 Font 18/SmallcapsGlow Map View 76x50 Tactical HUD 1 Map Filters NONE Filters NONE Steam 1 RUN: 3333e6d4-3490-4f80-8d60-a3da950d3bb9